bitfinex/quotes_BTCUSD_20241002
["timestamp","ask_amount","ask_price","bid_price","bid_amount"]
[1727849264561,1.46266129,61598.0,61597.0,0.001638]
[1727849265224,1.64246483,61598.0,61597.0,0.001638]
[1727849265680,1.66791992,61598.0,61597.0,0.001638]
[1727849266663,1.69591992,61598.0,61597.0,0.001638]
[1727849267564,1.70991992,61598.0,61597.0,0.001638]
[1727849267788,1.25679335,61598.0,61597.0,0.001638]
[1727849267987,1.17507251,61598.0,61597.0,0.001638]
[1727849269590,1.29245151,61598.0,61597.0,0.001638]
[1727849270494,1.74768251,61598.0,61597.0,0.001638]
[1727849272301,1.6633982,61598.0,61597.0,0.001638]
[1727849272530,1.84562735,61598.0,61597.0,0.001638]
[1727849272759,1.84562492,61598.0,61597.0,0.001638]
[1727849273641,1.81178292,61598.0,61597.0,0.001638]
[1727849273866,0.1,61597.0,61588.0,0.001638]
[1727849274089,0.229893,61589.0,61588.0,0.001638]
[1727849274298,0.43074514,61589.0,61588.0,0.001638]
[1727849274935,0.45620085,61589.0,61588.0,0.001638]
[1727849275410,0.47020085,61589.0,61588.0,0.001638]
[1727849275620,0.57280736,61589.0,61588.0,0.178938]
[1727849275831,0.49878659,61589.0,61588.0,0.178938]
[1727849276038,0.49878659,61589.0,61588.0,0.18780936]
[1727849276477,0.49878659,61589.0,61588.0,0.178938]
[1727849276694,0.42592465,61589.0,61588.0,0.178938]
[1727849276903,0.49178531,61589.0,61588.0,0.18780936]
[1727849277108,0.49978531,61589.0,61588.0,0.18780936]
[1727849278066,0.64955496,61589.0,61588.0,0.18780936]
[1727849278157,0.75845721,61589.0,61588.0,0.18780936]
[1727849278803,0.78391208,61589.0,61588.0,0.18780936]
[1727849279061,0.78394946,61589.0,61588.0,0.18780936]
[1727849279902,0.88110418,61589.0,61588.0,0.18780936]
[1727849280378,0.88110418,61589.0,61588.0,0.178938]
[1727849280616,0.75849459,61589.0,61588.0,0.178938]
[1727849280835,0.87992908,61589.0,61588.0,0.178938]
[1727849281275,0.8625545,61589.0,61588.0,0.178938]
[1727849281508,0.87996359,61589.0,61588.0,0.178938]
[1727849281763,0.73827002,61589.0,61588.0,0.178938]
[1727849281980,0.65852631,61589.0,61588.0,0.178938]
[1727849283159,0.75567929,61589.0,61588.0,0.178938]
[1727849283370,0.65852631,61589.0,61588.0,0.178938]
[1727849283582,0.68398125,61589.0,61588.0,0.178938]
[1727849284589,0.66657495,61589.0,61588.0,0.178938]
[1727849284803,0.68399803,61589.0,61588.0,0.178938]
[1727849285002,0.65567806,61589.0,61588.0,0.178938]
[1727849285443,0.36953393,61589.0,61588.0,0.178938]
[1727849286317,0.49098361,61589.0,61588.0,0.178938]
[1727849286560,0.34407899,61589.0,61588.0,0.178938]
[1727849287855,0.32665591,61589.0,61588.0,0.178938]
[1727849288063,0.34408996,61589.0,61588.0,0.178938]
[1727849289655,0.36954377,61589.0,61588.0,0.178938]
[1727849290067,0.66371232,61589.0,61588.0,0.178938]
[1727849290272,0.66371232,61589.0,61588.0,0.096138]
[1727849290729,0.80961448,61589.0,61588.0,0.001638]
[1727849290931,0.64627827,61589.0,61588.0,0.001638]
[1727849291342,0.66370061,61589.0,61588.0,0.001638]
[1727849291545,0.53422651,61589.0,61588.0,0.001638]
[1727849292223,0.78876641,61589.0,61588.0,0.001638]
[1727849292639,0.78876641,61589.0,61587.0,0.10507182]
[1727849292640,0.75887341,61589.0,61587.0,0.10505491]
[1727849292920,0.7483146,61588.0,61587.0,0.10505491]
[1727849293176,0.65865652,61588.0,61587.0,0.10505491]
[1727849293463,0.91319642,61588.0,61587.0,0.10505491]
[1727849293679,1.01319642,61588.0,61587.0,0.10505491]
[1727849294333,0.84829496,61588.0,61587.0,0.10505491]
[1727849294567,0.59375506,61588.0,61587.0,0.10505491]
[1727849294767,0.60075506,61588.0,61587.0,0.10505491]
[1727849295180,0.59375506,61588.0,61587.0,0.10505491]
[1727849295591,0.60175506,61588.0,61587.0,0.10505491]
[1727849295798,0.85783688,61588.0,61587.0,0.10505491]
[1727849296027,0.93973688,61588.0,61587.0,0.10505491]
[1727849296453,1.5675699,61588.0,61587.0,0.10505491]
[1727849297310,1.5675699,61588.0,61580.0,0.10766073]
[1727849297311,0.22991,61581.0,61580.0,0.10766073]
[1727849297525,1.6358292,61581.0,61580.0,0.11658575]
[1727849297733,1.7886602,61581.0,61580.0,0.10766073]
[1727849297944,1.81412201,61581.0,61580.0,0.10766073]
[1727849298364,1.92402201,61581.0,61580.0,0.10766073]
[1727849298812,1.91002201,61581.0,61580.0,0.10766073]
[1727849299018,1.92402201,61581.0,61580.0,0.10766073]
[1727849299854,1.06416101,61581.0,61580.0,0.10766073]
[1727849300527,1.01859943,61581.0,61580.0,0.10766073]
[1727849300740,1.06398956,61581.0,61580.0,0.10766073]
[1727849302050,1.06398956,61581.0,61568.0,0.24296023]
[1727849302051,0.229922,61575.0,61568.0,0.24296023]
[1727849302317,0.229922,61575.0,61566.0,0.00164]
[1727849302318,0.229937,61568.0,61566.0,0.00164]
[1727849302525,0.229937,61568.0,61561.0,0.24296023]
[1727849302526,0.22995,61562.0,61561.0,0.24296023]
[1727849302741,0.229952,61561.0,61560.0,0.11379545]
[1727849302944,1.72237558,61561.0,61560.0,0.11379545]
[1727849303159,0.91694458,61561.0,61560.0,0.11379545]
[1727849303376,0.311867,61554.0,61553.0,0.11638636]
[1727849303629,0.52195158,61554.0,61553.0,0.11638636]
[1727849303836,0.67337162,61554.0,61553.0,0.11638636]
[1727849304056,0.75635344,61554.0,61553.0,0.11638636]
[1727849304484,0.59147162,61554.0,61553.0,0.11638636]
[1727849304903,0.76961095,61554.0,61553.0,0.11638636]
[1727849305312,0.59147162,61554.0,61553.0,0.11638636]
[1727849305522,0.616944,61554.0,61553.0,0.11638636]
[1727849305726,0.644944,61554.0,61553.0,0.11638636]
[1727849305938,0.630944,61554.0,61553.0,0.11638636]
[1727849306174,0.75951988,61554.0,61553.0,0.11638636]
[1727849306816,0.7340475,61554.0,61553.0,0.11638636]
[1727849307033,1.36629234,61554.0,61553.0,0.11638636]
[1727849307530,1.22930067,61554.0,61553.0,0.11638636]
[1727849307744,0.61938546,61554.0,61553.0,0.11638636]
[1727849309634,0.64485765,61554.0,61553.0,0.11638636]
[1727849309851,0.69312736,61554.0,61553.0,0.11638636]
[1727849310310,0.64485765,61554.0,61553.0,0.11638636]
[1727849310540,0.68022531,61554.0,61553.0,0.11638636]
[1727849310761,1.08767412,61554.0,61553.0,0.11638636]
[1727849311197,1.09267412,61554.0,61553.0,0.11638636]
[1727849311434,1.10267412,61554.0,61553.0,0.11638636]
[1727849311647,1.10267412,61554.0,61553.0,0.0537605]
[1727849311854,1.10267412,61554.0,61553.0,0.03161153]
[1727849312501,0.234981,61547.0,61546.0,0.12061527]
[1727849312712,2.75405611,61547.0,61546.0,0.12923922]
[1727849312922,2.73596911,61547.0,61546.0,0.12061527]
[1727849313157,2.74843789,61547.0,61546.0,0.12061527]
[1727849314277,2.14750989,61547.0,61546.0,0.12061527]
[1727849314486,2.27771371,61547.0,61546.0,0.12061527]
[1727849314693,2.10651371,61547.0,61546.0,0.12061527]
[1727849315131,2.12051371,61547.0,61546.0,0.12061527]
[1727849315576,1.29356089,61547.0,61546.0,0.12061527]
[1727849316227,1.26808611,61547.0,61546.0,0.12061527]
[1727849317106,1.26808611,61547.0,61546.0,0.11561527]
[1727849317733,0.62292411,61547.0,61546.0,0.11561527]
[1727849317949,2.16907511,61547.0,61546.0,0.11561527]
[1727849318162,2.33395693,61547.0,61546.0,0.11561527]
[1727849318365,2.35943192,61547.0,61546.0,0.11561527]
[1727849318601,2.33158146,61547.0,61546.0,0.11561527]
[1727849319005,2.41268146,61547.0,61546.0,0.11561527]
[1727849319217,2.50668146,61547.0,61546.0,0.11561527]
[1727849319846,2.50657076,61547.0,61546.0,0.11561527]
[1727849320579,2.48957076,61547.0,61546.0,0.11561527]
[1727849320839,0.005,61540.0,61539.0,0.08906818]
[1727849321086,0.68679068,61540.0,61539.0,0.05656818]
[1727849321321,4.60344868,61540.0,61539.0,0.05656818]
[1727849321523,4.59756429,61540.0,61539.0,0.05656818]
[1727849321799,4.51805711,61540.0,61539.0,0.05656818]
[1727849321971,0.235005,61536.0,61535.0,0.00164]
[1727849322169,3.14359468,61536.0,61535.0,0.00164]
[1727849322376,3.06695368,61536.0,61535.0,0.00164]
[1727849322693,3.16331993,61536.0,61535.0,0.00164]
[1727849322923,2.66219193,61536.0,61535.0,0.00164]
[1727849323327,2.57365493,61536.0,61535.0,0.00164]
[1727849323525,2.23852393,61536.0,61535.0,0.00164]
[1727849323951,2.25252393,61536.0,61535.0,0.00164]
[1727849324972,2.25252393,61536.0,61533.0,0.11279827]
[1727849324973,0.245009,61534.0,61533.0,0.11279827]
[1727849325205,0.130024,61527.0,61519.0,0.12934091]
[1727849325420,2.57593028,61527.0,61519.0,0.12934091]
[1727849325630,2.55404328,61527.0,61519.0,0.12934091]
[1727849325833,2.7189251,61527.0,61519.0,0.12934091]
[1727849326054,2.6851471,61527.0,61519.0,0.12934091]
[1727849326690,2.1025031,61527.0,61519.0,0.12934091]
[1727849326885,1.7704841,61527.0,61519.0,0.12934091]
[1727849327080,1.7436911,61527.0,61519.0,0.12934091]
[1727849327316,1.5590071,61527.0,61519.0,0.12934091]
[1727849327520,1.5730071,61527.0,61519.0,0.12934091]
[1727849327722,1.5870071,61527.0,61519.0,0.12934091]
[1727849328314,1.5730071,61527.0,61519.0,0.12934091]
[1727849328780,1.5870071,61527.0,61519.0,0.12934091]
[1727849328984,1.6124907,61527.0,61519.0,0.12934091]
[1727849329436,1.61245486,61527.0,61519.0,0.12934091]
[1727849329963,1.61245313,61527.0,61519.0,0.12934091]
[1727849330226,0.69835731,61527.0,61519.0,0.12934091]
[1727849330426,0.66084331,61527.0,61519.0,0.12934091]
[1727849330659,0.64684331,61527.0,61519.0,0.12934091]
[1727849330864,0.63284331,61527.0,61519.0,0.12934091]
[1727849331064,0.82572513,61527.0,61519.0,0.12934091]
[1727849331273,0.81172513,61527.0,61519.0,0.12934091]
[1727849331400,0.82572513,61527.0,61519.0,0.12934091]
[1727849331603,0.81172513,61527.0,61519.0,0.12934091]
[1727849331823,0.79772513,61527.0,61519.0,0.12934091]
[1727849332030,0.81172513,61527.0,61519.0,0.12934091]
[1727849332469,0.8117651,61527.0,61519.0,0.12934091]
[1727849333692,0.8257651,61527.0,61519.0,0.12934091]
[1727849333903,0.8117651,61527.0,61519.0,0.12934091]
[1727849334536,0.8257651,61527.0,61519.0,0.12934091]
[1727849334741,0.8117651,61527.0,61519.0,0.12934091]
[1727849334944,0.005,61526.0,61519.0,0.12934091]
[1727849335182,0.54572012,61522.0,61519.0,0.12934091]
[1727849335418,0.56301835,61522.0,61519.0,0.12934091]
[1727849336587,1.08600758,61522.0,61519.0,0.12934091]
[1727849336864,0.9721544,61522.0,61519.0,0.12934091]
[1727849337122,0.92391025,61522.0,61519.0,0.12934091]
[1727849337375,1.08879207,61522.0,61519.0,0.12934091]
[1727849337791,1.11660726,61522.0,61519.0,0.12934091]
[1727849337994,1.14460726,61522.0,61519.0,0.12934091]
[1727849338217,1.32480726,61522.0,61519.0,0.12934091]
[1727849338639,1.33880726,61522.0,61519.0,0.12934091]
[1727849338832,1.32099207,61522.0,61521.0,1e-06]
[1727849339058,1.30363094,61522.0,61521.0,1e-06]
[1727849339250,1.36908871,61522.0,61521.0,1e-06]
[1727849339460,0.268041,61519.0,61518.0,0.00082]
[1727849339671,4.30120623,61519.0,61518.0,0.00082]
[1727849339887,3.98340893,61519.0,61518.0,0.00082]
[1727849340098,3.18759793,61519.0,61518.0,0.00082]
[1727849340332,2.25376435,61519.0,61518.0,0.00082]
[1727849340526,2.20198388,61519.0,61518.0,0.00082]
[1727849340726,0.79728313,61519.0,61518.0,0.00082]
[1727849340944,0.68991213,61519.0,61518.0,0.00082]
[1727849341368,0.71787608,61519.0,61518.0,0.00082]
[1727849341600,0.68654487,61519.0,61518.0,0.00082]
[1727849341862,0.71787619,61519.0,61518.0,0.00082]
[1727849342096,0.86875801,61519.0,61518.0,0.00082]
[1727849342298,0.83826859,61519.0,61518.0,0.00082]
[1727849342503,0.85226859,61519.0,61518.0,0.00082]
[1727849342926,0.46789265,61519.0,61518.0,0.00082]
[1727849343125,0.46789265,61519.0,61518.0,0.01124027]
[1727849343325,0.45389265,61519.0,61518.0,0.01124027]
[1727849343563,1.26108837,61519.0,61518.0,0.00082]
[1727849343763,1.08002237,61519.0,61518.0,0.00082]
[1727849343968,1.17190419,61519.0,61518.0,0.00082]
[1727849344173,0.84077519,61519.0,61518.0,0.00082]
[1727849344995,0.79554427,61519.0,61518.0,0.00082]
[1727849345208,0.86637946,61519.0,61518.0,0.00082]
[1727849347157,0.65845246,61519.0,61518.0,0.00082]
[1727849347362,0.49357064,61519.0,61518.0,0.01124027]
[1727849347573,0.46808341,61519.0,61518.0,0.01124027]
[1727849347779,0.46808341,61519.0,61518.0,0.00082]
[1727849348204,0.44008341,61519.0,61518.0,0.00082]
[1727849348412,0.45408341,61519.0,61518.0,0.00082]
[1727849348639,0.42273545,61519.0,61518.0,0.00082]
[1727849348852,0.45416596,61519.0,61518.0,0.00082]
[1727849349066,0.60666678,61519.0,61518.0,0.00082]
[1727849349275,0.60830878,61519.0,61518.0,0.00082]
[1727849349495,0.46977092,61519.0,61518.0,0.00082]
[1727849349711,0.45577092,61519.0,61518.0,0.00082]
[1727849349919,0.230047,61516.0,61515.0,0.0989]
[1727849350126,0.59112659,61516.0,61515.0,0.0989]
[1727849350555,0.61661333,61516.0,61515.0,0.0989]
[1727849350969,0.63061333,61516.0,61515.0,0.0989]
[1727849351389,0.64461333,61516.0,61515.0,0.0989]
[1727849352281,0.64494983,61516.0,61515.0,0.0989]
[1727849353905,0.78763451,61516.0,61515.0,0.0989]
[1727849355634,0.230049,61515.0,61514.0,4.9e-05]
[1727849355851,0.49225389,61515.0,61514.0,4.9e-05]
[1727849356064,0.45152392,61515.0,61514.0,4.9e-05]
[1727849356272,1.43730398,61515.0,61514.0,4.9e-05]
[1727849356489,0.130053,61513.0,61505.0,0.13452273]
[1727849356706,4.63947716,61513.0,61505.0,0.13452273]
[1727849356920,4.04700474,61513.0,61505.0,0.13452273]
[1727849357160,4.21188656,61513.0,61506.0,0.24296023]
[1727849357390,2.04843156,61513.0,61506.0,0.24296023]
[1727849357629,2.01390045,61513.0,61506.0,0.24296023]
[1727849357890,0.130066,61507.0,61506.0,0.24296023]
[1727849358123,2.19801828,61507.0,61506.0,0.24296023]
[1727849358354,0.230068,61506.0,61505.0,0.13452273]
[1727849358602,1.91539061,61506.0,61505.0,0.13452273]
[1727849358815,1.84159061,61506.0,61505.0,0.13452273]
[1727849359017,1.86708236,61506.0,61505.0,0.13452273]
[1727849359234,2.03196418,61506.0,61505.0,0.13452273]
[1727849359710,2.03222954,61506.0,61505.0,0.13452273]
[1727849359944,1.98889048,61506.0,61505.0,0.13452273]
[1727849360179,2.0067347,61506.0,61505.0,0.13452273]
[1727849360415,2.4103768,61506.0,61505.0,0.13452273]
[1727849360642,2.4153768,61506.0,61505.0,0.13452273]
[1727849360885,2.4013768,61506.0,61505.0,0.13452273]
[1727849361139,2.4153768,61506.0,61505.0,0.13452273]
[1727849361373,2.25622979,61506.0,61505.0,0.13452273]
[1727849361628,2.27022979,61506.0,61505.0,0.13452273]
[1727849362375,2.25622979,61506.0,61505.0,0.13452273]
[1727849362594,2.07830556,61506.0,61505.0,0.13452273]
[1727849362832,2.09230556,61506.0,61505.0,0.13452273]
[1727849363066,2.07140326,61506.0,61505.0,0.13452273]
[1727849363331,2.1036084,61506.0,61505.0,0.13452273]
[1727849363588,2.1176084,61506.0,61505.0,0.13452273]
[1727849364082,2.29218096,61506.0,61505.0,0.13452273]
[1727849364597,2.32018096,61506.0,61505.0,0.13452273]
[1727849364891,1.07264451,61506.0,61505.0,0.13452273]
[1727849365108,0.65754015,61506.0,61505.0,0.13452273]
[1727849365335,0.80270352,61506.0,61505.0,0.13452273]
[1727849365603,0.80270352,61506.0,61505.0,0.141564]
[1727849365604,0.65754015,61506.0,61505.0,0.141564]
[1727849365886,1.52386497,61506.0,61505.0,0.13452273]
[1727849366114,1.53786497,61506.0,61505.0,0.13452273]
[1727849366592,1.52386497,61506.0,61505.0,0.13452273]
[1727849366818,1.53786497,61506.0,61505.0,0.13452273]
[1727849367285,1.76854849,61506.0,61505.0,0.13452273]
[1727849367836,1.79654849,61506.0,61505.0,0.00303103]
[1727849368078,1.8080411,61506.0,61505.0,0.00303103]
[1727849368312,1.79654849,61506.0,61505.0,0.00303103]
[1727849368560,1.61766667,61506.0,61505.0,0.00303103]
[1727849368818,1.48759867,61506.0,61501.0,0.0002]
[1727849369022,0.54576312,61502.0,61501.0,0.0002]
[1727849369257,0.76665829,61502.0,61501.0,0.0002]
[1727849369511,0.85245315,61502.0,61501.0,0.0002]
[1727849369763,0.88079845,61502.0,61501.0,0.0002]
[1727849370005,0.88080088,61502.0,61501.0,0.00724127]
[1727849370243,0.76651821,61502.0,61501.0,0.0002]
[1727849370725,0.61552654,61502.0,61501.0,0.0002]
[1727849371198,0.64101899,61502.0,61501.0,0.0002]
[1727849371929,0.65501899,61502.0,61501.0,0.0002]
[1727849372170,0.66901899,61502.0,61501.0,0.0002]
[1727849372719,0.66901899,61502.0,61501.0,0.0761]
[1727849373885,0.66901899,61502.0,61501.0,0.076921]
[1727849374104,0.66639841,61502.0,61501.0,0.168921]
[1727849374540,0.65239841,61502.0,61501.0,0.168921]
[1727849374773,0.66639841,61502.0,61501.0,0.168921]
[1727849375004,0.65239841,61502.0,61501.0,0.168921]
[1727849375227,0.81160856,61502.0,61501.0,0.168921]
[1727849375445,0.82560856,61502.0,61501.0,0.168921]
[1727849375659,0.63953911,61502.0,61501.0,0.168921]
[1727849375868,0.62553911,61502.0,61501.0,0.168921]
[1727849376092,0.65353911,61502.0,61501.0,0.168921]
[1727849376340,0.48032896,61502.0,61501.0,0.168921]
[1727849376561,0.46261163,61502.0,61501.0,0.168921]
[1727849376776,0.4342639,61502.0,61501.0,0.168921]
[1727849376994,0.49459517,61502.0,61501.0,0.168921]
[1727849378080,0.48059517,61502.0,61501.0,0.168921]
[1727849378307,0.49459517,61502.0,61501.0,0.168921]
[1727849378542,0.36910272,61502.0,61501.0,0.168921]
[1727849378802,0.23902572,61502.0,61501.0,0.168921]
[1727849379038,0.23902572,61502.0,61501.0,0.17737111]
[1727849379466,0.22502572,61502.0,61501.0,0.17537111]
[1727849379682,0.22002572,61502.0,61501.0,0.17737111]
[1727849379898,0.05533127,61502.0,61501.0,0.33045011]
[1727849380163,0.02669934,61502.0,61501.0,0.33045011]
[1727849380377,0.009,61502.0,61501.0,0.33045011]
[1727849380598,0.05494215,61502.0,61501.0,0.33045011]
[1727849381053,0.06494215,61502.0,61501.0,0.48144178]
[1727849381719,0.09042984,61502.0,61501.0,0.48144178]
[1727849381953,0.130058,61511.0,61509.0,0.002]
[1727849382183,0.29475445,61510.0,61509.0,0.002]
[1727849382407,0.16469445,61510.0,61509.0,0.094]
[1727849382623,0.29475445,61510.0,61509.0,0.092]
[1727849382836,0.29475445,61510.0,61509.0,0.1679]
[1727849383052,0.16469445,61510.0,61509.0,0.1679]
[1727849383507,0.29475445,61510.0,61509.0,0.1699]
[1727849384138,0.16469445,61510.0,61509.0,0.1699]
[1727849384378,0.001642,61513.0,61512.0,0.002]
[1727849384624,0.001642,61513.0,61512.0,0.330255]
[1727849385336,0.001642,61513.0,61512.0,0.324255]
[1727849385847,0.010642,61513.0,61512.0,0.325255]
[1727849386036,0.004642,61513.0,61512.0,0.324255]
[1727849386279,0.004642,61513.0,61512.0,0.325255]
[1727849386529,0.001642,61513.0,61512.0,0.325255]
[1727849386752,0.001642,61513.0,61512.0,0.326255]
[1727849389711,0.001642,61519.0,61518.0,0.47923467]
[1727849392203,0.001642,61519.0,61518.0,0.48423467]
[1727849392425,0.001642,61519.0,61518.0,0.47923467]
[1727849392649,0.002642,61519.0,61518.0,0.48823467]
[1727849392873,0.24296023,61534.0,61526.0,0.1574]
[1727849393132,0.24296023,61534.0,61533.0,0.208611]
[1727849393574,0.130001,61538.0,61533.0,0.208611]
[1727849394017,0.129999,61539.0,61535.0,0.130006]
[1727849394245,0.01705812,61538.0,61533.0,0.338622]
[1727849394456,0.01705812,61537.0,61536.0,0.00604967]
[1727849394684,0.01705812,61537.0,61533.0,0.338622]
[1727849394902,0.25999,61541.0,61533.0,0.20861]
[1727849394903,0.01705812,61536.0,61533.0,0.20861]
[1727849395118,0.01705812,61535.0,61534.0,0.130009]
[1727849396282,0.003,61535.0,61534.0,0.249609]
[1727849396495,0.003,61535.0,61534.0,0.588223]
[1727849397876,0.103,61535.0,61534.0,0.588223]
[1727849398296,0.107,61535.0,61534.0,0.588223]
[1727849398957,0.108642,61535.0,61534.0,0.588223]
[1727849399185,0.105642,61535.0,61534.0,0.588223]
[1727849399704,0.101642,61535.0,61534.0,0.588223]
[1727849401293,0.102642,61535.0,61534.0,0.588223]
[1727849402458,0.103642,61535.0,61534.0,0.596223]
[1727849402715,0.102642,61535.0,61534.0,0.596223]
[1727849403166,0.103642,61535.0,61534.0,0.76691745]
[1727849403623,0.24296023,61550.0,61535.0,0.1548]
[1727849403842,0.24296023,61550.0,61549.0,0.38256867]
[1727849404318,0.24296023,61557.0,61551.0,0.259946]
[1727849404542,0.37292223,61557.0,61553.0,0.28096067]
[1727849404753,0.01875645,61554.0,61553.0,0.30396067]
[1727849405212,0.01875645,61554.0,61553.0,0.30514964]
[1727849405435,0.00164,61554.0,61553.0,0.38374964]
[1727849405680,0.00164,61554.0,61553.0,0.47916067]
[1727849406430,0.00164,61554.0,61553.0,0.47816067]
[1727849407161,0.00164,61554.0,61553.0,0.47796067]
[1727849407417,0.00164,61554.0,61553.0,0.47716067]
[1727849407625,0.00164,61554.0,61553.0,0.48116067]
[1727849407910,0.00164,61554.0,61553.0,0.48516067]
[1727849408160,0.00164,61554.0,61553.0,0.48436067]
[1727849408891,0.00164,61554.0,61553.0,0.48416067]
[1727849409098,0.00164,61554.0,61553.0,0.48912543]
[1727849409451,0.00164,61554.0,61553.0,0.48892543]
[1727849409885,0.00164,61554.0,61553.0,0.48812543]
[1727849410303,0.00164,61554.0,61553.0,0.48792543]
[1727849410958,0.00164,61554.0,61553.0,0.48782543]
[1727849414503,0.00164,61554.0,61553.0,0.65251988]
[1727849414768,0.00164,61554.0,61553.0,0.75251988]
[1727849415434,0.00164,61554.0,61553.0,0.74851988]
[1727849415645,0.00264,61554.0,61553.0,0.75351988]
[1727849415884,0.00364,61554.0,61553.0,0.76751988]
[1727849416980,0.00264,61554.0,61553.0,0.75851988]
[1727849417433,0.00364,61554.0,61553.0,0.77051988]
[1727849417652,0.00364,61554.0,61553.0,0.35823376]
[1727849421497,0.02077801,61554.0,61553.0,0.50922543]
[1727849421955,0.02077801,61554.0,61553.0,0.25823376]
[1727849422191,0.02077801,61554.0,61553.0,0.23523376]
[1727849422667,0.00364,61554.0,61553.0,0.23523376]
[1727849422902,0.02096087,61554.0,61553.0,0.38622543]
[1727849424028,0.02096087,61554.0,61553.0,0.40922543]
[1727849424257,0.02096087,61554.0,61553.0,0.67473988]
[1727849424475,0.00364,61554.0,61553.0,0.67473988]
[1727849424951,0.00164,61567.0,61566.0,0.129941]
[1727849425148,0.01884421,61567.0,61566.0,0.38353267]
[1727849425366,0.01884421,61567.0,61566.0,0.38860199]
[1727849425593,0.00164,61567.0,61566.0,0.48860199]
[1727849426507,0.00164,61567.0,61566.0,0.75119644]
[1727849426731,0.00164,61567.0,61566.0,0.75319644]
[1727849427641,0.00264,61567.0,61566.0,0.76219644]
[1727849427861,0.00364,61567.0,61566.0,0.77619644]
[1727849428076,0.00264,61567.0,61566.0,0.76519644]
[1727849428289,0.00364,61567.0,61566.0,0.78319644]
[1727849428972,0.00164,61572.0,61566.0,0.78319644]
[1727849428973,0.00164,61572.0,61568.0,0.005]
[1727849429197,0.00164,61572.0,61571.0,0.48472267]
[1727849429417,0.01883306,61572.0,61571.0,0.64941712]
[1727849429643,0.00164,61572.0,61571.0,0.64941712]
[1727849429860,0.01885799,61572.0,61571.0,0.65435175]
[1727849430349,0.00164,61572.0,61571.0,0.66435175]
[1727849430569,0.01885366,61572.0,61571.0,0.66435175]
[1727849431000,0.01885366,61572.0,61571.0,0.67435175]
[1727849431414,0.00164,61572.0,61571.0,0.67435175]
[1727849431628,0.00164,61572.0,61571.0,0.67843164]
[1727849432033,0.10164,61572.0,61571.0,0.68043164]
[1727849432440,0.10164,61572.0,61571.0,0.67843164]
[1727849435691,0.10164,61572.0,61571.0,0.68343164]
[1727849436126,0.10164,61572.0,61571.0,0.68543164]
[1727849436374,0.10164,61572.0,61571.0,0.68343164]
[1727849442927,0.10164,61572.0,61571.0,0.68543164]
[1727849443360,0.10164,61572.0,61571.0,0.68343164]
[1727849444257,0.10164,61572.0,61571.0,0.43293719]
[1727849444470,0.11902438,61572.0,61571.0,0.43293719]
[1727849445407,0.10164,61572.0,61571.0,0.43293719]
[1727849446301,0.0800885,61572.0,61571.0,0.67653164]
[1727849448913,0.0817265,61572.0,61571.0,0.67653164]
[1727849452250,0.0817265,61572.0,61571.0,0.59763164]
[1727849453372,0.09926232,61572.0,61571.0,0.59763164]
[1727849454486,0.09926232,61572.0,61571.0,0.43293719]
[1727849455358,0.09927144,61572.0,61571.0,0.43293719]
[1727849456458,0.09927144,61572.0,61571.0,0.84059187]
[1727849456675,0.09927144,61572.0,61571.0,0.59763164]
[1727849459795,0.001642,61581.0,61576.0,0.023]
[1727849460017,0.24296023,61591.0,61583.0,0.129905]
[1727849460249,0.24296023,61591.0,61587.0,0.30388867]
[1727849460470,0.24296023,61591.0,61587.0,0.30713539]
[1727849460727,0.24296023,61591.0,61587.0,0.31602157]
[1727849460924,0.00164,61594.0,61587.0,0.31602157]
[1727849461142,0.00164,61594.0,61587.0,0.31277485]
[1727849461602,0.00164,61594.0,61587.0,0.4774693]
[1727849461817,0.00164,61594.0,61587.0,0.31277485]
[1727849462253,0.00164,61594.0,61587.0,0.32677485]
[1727849462640,0.00164,61594.0,61587.0,0.31277485]
[1727849462834,0.00164,61594.0,61587.0,0.34077485]
[1727849463272,0.00164,61594.0,61587.0,0.31277485]
[1727849463505,0.078,61591.0,61587.0,0.31277485]
[1727849463815,0.078,61591.0,61587.0,0.32577485]
[1727849464332,0.078,61591.0,61587.0,0.31277485]
[1727849465017,0.078,61591.0,61587.0,0.32577485]
[1727849465671,0.00164,61594.0,61587.0,0.34977485]
[1727849465883,0.00164,61594.0,61587.0,0.32477485]
[1727849466099,0.00164,61594.0,61587.0,0.33577485]
[1727849466225,0.00164,61594.0,61587.0,0.32377485]
[1727849466653,0.00164,61594.0,61587.0,0.33477485]
[1727849471772,0.01920578,61588.0,61587.0,0.33477485]
[1727849472195,0.01920578,61588.0,61587.0,0.5783693]
[1727849472427,0.00164,61588.0,61587.0,0.6783693]
[1727849472872,0.00164,61588.0,61587.0,0.6803693]
[1727849473312,0.00164,61588.0,61587.0,0.6693693]
[1727849473558,0.00164,61588.0,61587.0,0.6803693]
[1727849473986,0.00164,61588.0,61587.0,0.6583693]
[1727849474211,0.00164,61594.0,61593.0,0.152884]
[1727849474438,0.00164,61594.0,61593.0,0.46857012]
[1727849474659,0.00164,61594.0,61593.0,0.47727286]
[1727849475094,0.00164,61594.0,61593.0,0.57727286]
[1727849475331,0.001638,61601.0,61593.0,0.67177286]
[1727849475545,0.00164,61616.0,61615.0,0.152838]
[1727849475767,0.00164,61616.0,61615.0,0.30530521]
[1727849475768,0.03615799,61616.0,61615.0,0.30530521]
[1727849475993,0.03615799,61616.0,61615.0,0.31384619]
[1727849475994,0.01911061,61616.0,61615.0,0.31384619]
[1727849476722,0.00164,61616.0,61615.0,0.31484619]
[1727849476938,0.00164,61616.0,61615.0,0.31337065]
[1727849479111,0.00164,61616.0,61615.0,0.6538651]
[1727849479556,0.00164,61616.0,61615.0,0.99132533]
[1727849479776,0.24459823,61634.0,61615.0,0.99132533]
[1727849479777,0.24459823,61634.0,61620.0,0.252827]
[1727849480008,0.24459823,61634.0,61620.0,0.56851312]
[1727849480247,0.24459823,61634.0,61620.0,0.57690929]
[1727849482001,0.24459823,61634.0,61620.0,0.59990929]
[1727849482428,0.24459823,61634.0,61620.0,0.60190929]
[1727849482651,0.24459823,61634.0,61620.0,0.59090929]
[1727849482891,0.24459823,61634.0,61620.0,0.60490929]
[1727849484616,0.0954,61630.0,61620.0,0.60490929]
[1727849487799,0.0954,61630.0,61620.0,0.60910326]
[1727849494663,0.34289823,61634.0,61620.0,0.68490326]
[1727849494871,0.34289823,61634.0,61620.0,0.68690326]
[1727849495092,0.34289823,61634.0,61628.0,0.129811]
[1727849495360,0.24459823,61634.0,61628.0,0.56849712]
[1727849495568,0.24459823,61634.0,61628.0,0.57677088]
[1727849498009,0.001638,61634.0,61628.0,0.58977088]
[1727849498221,0.001638,61634.0,61628.0,0.59392038]
[1727849498428,0.001638,61634.0,61628.0,0.60692038]